Cogmind - Beta 11.1 --- EXPLORER MODE // 2022.12.21 @ 17:10:06 Player: Emberiza Result: Self-destructed Performance ------------- Evolutions (1) 500 Regions Visited (3) 600 Robots Destroyed (16) 80 Value Destroyed (442) 442 Prototype IDs (3) 60 Alien Tech Used (0) 0 Bonus (0) 0 TOTAL SCORE: 1682 Bonus ------- None Cogmind --------- Core Integrity 400/400 Matter 245/300 Energy 160/160 System Corruption 0% Temperature Cool (0) Movement Treading (160) Location -9/Materials Parts ------- > --- POWER (1) -------- Light Nuclear Core > --- PROPULSION (2) --- Light Treads Light Treads > --- UTILITY (4) ------ Large Storage Unit Structural Scanner Targeting Computer Hardened Light Armor Plating > --- WEAPON (3) ------- Medium Laser Autogun Light Cannon > --- INVENTORY (15) --- Ion Engine Aluminum Leg Aluminum Leg Particle Gun Light Assault Rifle Datajack Peak State ------------ > --- POWER ------------ Light Nuclear Core > --- PROPULSION ------- Light Treads Light Treads > --- UTILITY ---------- Huge Storage Unit Structural Scanner Targeting Computer Hardened Light Armor Plating > --- WEAPON ----------- Medium Laser Particle Gun Light Cannon > --- INVENTORY -------- Ion Engine Aluminum Leg Aluminum Leg Hover Unit Particle Gun Light Assault Rifle Autogun Datajack [Rating: 15] Favorites ----------- Power Light Nuclear Core Engine Ion Engine Power Core Light Nuclear Core Propulsion Aluminum Leg Treads Light Treads Leg Aluminum Leg Utility Structural Scanner Device Structural Scanner Storage Medium Storage Unit Processor Targeting Computer Protection Hardened Light Armor Plating Weapon Light Assault Rifle Energy Gun Particle Gun Ballistic Gun Light Assault Rifle Ballistic Cannon Light Cannon Build | -11 -10 -10 -9 ------- Run | Scr Mat Min Mat Slots Evolved 3 | . 1 . 2 Power . | . . . . Propulsion . | . . . . Utility 2 | . . . 2 Weapon 1 | . 1 . . Parts Attached 29 | 8 11 3 7 Power 6 | 2 4 . . Engine 5 | 2 3 . . Core 1 | . 1 . . Reactor . | . . . . Propulsion 5 | 2 1 2 . Treads 2 | . . 2 . Leg 3 | 2 1 . . Wheel . | . . . . Hover . | . . . . Flight . | . . . . Utility 10 | 2 2 1 5 Device 2 | . 1 . 1 Storage 3 | . 1 . 2 Processor 2 | 1 . 1 . Hackware . | . . . . Protection 3 | 1 . . 2 Artifact . | . . . . Weapon 8 | 2 4 . 2 Energy Gun 4 | . 3 . 1 Energy Cannon . | . . . . Ballistic Gun 3 | 2 . . 1 Ballistic Cannon 1 | . 1 . . Launcher . | . . . . Special Weapon . | . . . . Impact Weapon . | . . . . Slashing Weapon . | . . . . Piercing Weapon . | . . . . Special Melee Weapon . | . . . . Unidentified Prototypes . | . . . . Parts Lost 1 | . 1 . . Power . | . . . . Propulsion . | . . . . Utility 1 | . 1 . . Weapon . | . . . . Highest Loss Streak 1 | . 1 . . To Critical Strikes . | . . . . Average Slot Usage (%) 97 | . 96 100 98 Engine 3 | . 5 . . Core 7 | . 5 12 10 Treads 6 | . . 13 20 Leg 17 | . 25 11 . Device 9 | . 11 4 10 Storage 9 | . 8 12 9 Processor 3 | . . 7 10 Protection 4 | . 3 . 8 Energy Gun 14 | . 12 25 13 Ballistic Gun 10 | . 14 . 6 Ballistic Cannon 8 | . 6 12 10 Naked Turns . | . . . . Heaviest Build 99 | 10 24 24 99 Greatest Support 40 | 20 20 40 40 Greatest Overweight (x) 2 | 1 1 1 2 Average Overweight (x) . | . . . . Largest Inventory Capacity 25 | 5 10 10 25 Average Capacity 10 | 5 8 10 19 Most Carried 10 | 5 8 10 9 Average Carried 5 | 2 4 6 6 Final Capacity 15 | 5 10 10 15 Final Carried 8 | 3 5 8 6 Class Distribution -------------------- 48% | Hacker-Skirmisher 29% | Hacker-Gunner 21% | Hacker-Mutant Dominant Class ---------------- Hacker-Skirmisher | -10/Materials Hacker-Gunner | -10/Mines Hacker-Gunner | -9/Materials Resources | -11 -10 -10 -9 ----------- Run | Scr Mat Min Mat Matter Collected 569 | 256 228 38 47 Remotely . | . . . . Salvage Created 450 | 34 303 20 93 Parts 29 | 3 21 1 4 Haulers Intercepted . | . . . . Recyclers Shooed . | . . . . Parts Field Recycled . | . . . . Retrieved Matter . | . . . . Parts Self-Destructed . | . . . . Prevented . | . . . . Kills | -11 -10 -10 -9 ------- Run | Scr Mat Min Mat Combat Hostiles Destroyed 13 | 1 8 2 2 Guns 9 | 1 7 1 . Cannons 4 | . 1 1 2 Classes Destroyed 4 | 1 2 . 1 Watcher 3 | . 3 . . Swarmer 4 | . 2 2 . Grunt 7 | 1 6 . . Sentry 2 | . . . 2 Best Kill Streak 2 | 1 2 2 1 Combat Bots Only 2 | 1 2 2 1 Max Kills in Single Turn 2 | 1 2 1 1 Gunslinging 1 | . 1 . . Exploded . | . . . . Melee . | . . . . Uniques/NPCs Destroyed . | . . . . Combat | -11 -10 -10 -9 -------- Run | Scr Mat Min Mat Damage Taken 385 | 21 271 11 82 Core 21 | . 21 . . Absorbed by Shields . | . . . . Regen/Repaired (Parts) 36 | . 14 . 22 Core Remaining (%) 95 | 100 . 91 . Volleys Fired 38 | 4 28 2 4 Largest 3 | 2 3 3 3 Hottest 150 | 40 150 150 108 Shots Fired 96 | 8 70 6 12 Gun 77 | 8 57 4 8 Cannon 19 | . 13 2 4 Launcher . | . . . . Special . | . . . . Kinetic 70 | 8 52 2 8 Thermal 26 | . 18 4 4 Explosive . | . . . . Electromagnetic . | . . . . Robot Hit Streak 18 | 4 16 8 18 Robot Miss Streak 2 | 1 2 . . Penetration Max . | . . . . Secondary Targets 1 | . 1 . . Max Gunslinging Chain 1 | . 1 . . Shots Hit Robots 68 | 6 47 5 10 Core Hits 26 | 2 19 2 3 Critical Kills . | . . . . Critical Parts Destroyed . | . . . . Critical Strikes 2 | . 2 . . Burn 1 | . 1 . . Blast 1 | . 1 . . Melee Attacks . | . . . . Impact . | . . . . Slashing . | . . . . Piercing . | . . . . Sneak Attacks . | . . . . Combat Hostiles . | . . . . Follow-up Attacks . | . . . . Damage Inflicted 822 | 49 541 80 152 Guns 533 | 49 360 43 81 Cannons 282 | . 174 37 71 Explosions . | . . . . Melee . | . . . . Ramming 7 | . 7 . . Kinetic 564 | 49 378 37 100 Thermal 251 | . 156 43 52 Explosive . | . . . . Electromagnetic . | . . . . Impact . | . . . . Slashing . | . . . . Piercing . | . . . . Highest Corruption . | . . . . Average Corruption . | . . . . Corruption Purged . | . . . . Corruption Blocked . | . . . . Overload Shots . | . . . . Overflow Damage 12 | . 12 . . Projectiles 12 | . 12 . . Explosions . | . . . . Melee . | . . . . Knockbacks 1 | . 1 . . Impact . | . . . . Kinetic 1 | . 1 . . Secondary . | . . . . Self-Inflicted Damage . | . . . . Shots . | . . . . Rammed . | . . . . Targets Rammed 1 | . 1 . . Kicked 1 | . 1 . . Crushed . | . . . . Highest Temperature 264 | 12 264 192 138 Average Temperature 72 | 9 70 104 70 Received Heat Transfer 201 | 18 156 . 27 Siege Activations . | . . . . Robots Corrupted . | . . . . Combat Hostiles . | . . . . Parts Fried . | . . . . Impact Corruptions . | . . . . Robots Melted . | . . . . Combat Hostiles . | . . . . Parts Melted 1 | . . 1 . Heat Transferred 740 | . 481 111 148 Parts Sabotaged . | . . . . Parts Stolen . | . . . . Parts Stripped . | . . . . Power Chain Reactions . | . . . . Missiles Intercepted . | . . . . Alert | -11 -10 -10 -9 ------- Run | Scr Mat Min Mat Peak Influence 183 | 20 183 65 62 Initial 17 | . 9 . 17 Average 27 | 9 34 12 24 Maximum Alert Level . | . . . . Low Security (%) 100 | 100 100 100 100 Level 1 . | . . . . Level 2 . | . . . . Level 3 . | . . . . Level 4 . | . . . . Level 5 . | . . . . High Security . | . . . . Max Security . | . . . . Squads Dispatched 1 | . . . 1 Investigation 1 | . . . 1 Extermination . | . . . . Reinforcement . | . . . . Assault . | . . . . Garrison . | . . . . Intercept . | . . . . Searches Triggered . | . . . . Construction Impeded . | . . . . Haulers Reinforced . | . . . . Active Scanning Responses . | . . . . Cargo Convoy Interrupts . | . . . . Stealth | -11 -10 -10 -9 --------- Run | Scr Mat Min Mat Distress Signals 3 | . 3 . . Communications Jammed . | . . . . Distress Signals . | . . . . Times Spotted 24 | 1 18 3 2 Peak Tracking Total 3 | 1 3 2 1 Tactical Retreats . | . . . . Traps | -11 -10 -10 -9 ------- Run | Scr Mat Min Mat Traps Triggered 2 | . 1 . 1 Indirectly . | . . . . Trap Hack Attempts . | . . . . Triggered . | . . . . Disarmed . | . . . . Reprogrammed . | . . . . Reused . | . . . . Traps Extracted . | . . . . Installed . | . . . . Triggered . | . . . . Machines | -11 -10 -10 -9 ---------- Run | Scr Mat Min Mat Machines Disabled . | . . . . Max in Single Turn . | . . . . Machines Sabotaged . | . . . . Garrisons Compromised . | . . . . Overloaded Fab Kills . | . . . . Hacking | -11 -10 -10 -9 --------- Run | Scr Mat Min Mat Machines Accessed 13 | . 10 . 3 Terminals 9 | . 7 . 2 Fabricators . | . . . . Repair Stations 2 | . 1 . 1 Recycling Units 2 | . 2 . . Scanalyzers . | . . . . Garrison Access . | . . . . Total Hacks 29 | . 23 . 6 Successful 28 | . 23 . 5 Failed 1 | . . . 1 Catastrophic . | . . . . Database Lockouts . | . . . . Manual . | . . . . Terminals 20 | . 16 . 4 Fabricators . | . . . . Repair Stations 4 | . 2 . 2 Recycling Units 5 | . 5 . . Scanalyzers . | . . . . Garrison Access . | . . . . Terminal Hacks 19 | . 16 . 3 Record 6 | . 6 . . Prototype ID Bank 2 | . 2 . . Emergency Access Points 1 | . 1 . . Alert Level 2 | . 1 . 1 Unreport Threat 1 | . 1 . . Locate Traps 2 | . 2 . . Dispatch Records 1 | . 1 . . Maintenance Status 1 | . 1 . . Transport Status 1 | . 1 . . Investigation Status 1 | . . . 1 Recall Investigation 1 | . . . 1 Fabricator Hacks . | . . . . Repair Station Hacks 4 | . 2 . 2 Scan Component 2 | . 1 . 1 Repair 2 | . 1 . 1 Recycling Unit Hacks 5 | . 5 . . Recycle Component 2 | . 2 . . Process 1 | . 1 . . Report Inventory 1 | . 1 . . Retrieve Components 1 | . 1 . . Scanalyzer . | . . . . Garrison Access Hacks . | . . . . Unauthorized Hacks . | . . . . Terminals . | . . . . Fabricators . | . . . . Repair Stations . | . . . . Recycling Units . | . . . . Scanalyzers . | . . . . Garrison Access . | . . . . Data Cores Recovered . | . . . . Used . | . . . . Hacking Detections 7 | . 5 . 2 Full Trace Events 2 | . 1 . 1 Feedback Events . | . . . . Feedback Blocked . | . . . . Robot Schematics Acquired . | . . . . Robots Built . | . . . . Authchips . | . . . . Time . | . . . . Total Robot Build Rating . | . . . . Part Schematics Acquired . | . . . . Parts Built . | . . . . Authchips . | . . . . Time . | . . . . Total Part Build Rating . | . . . . Parts Repaired 2 | . 1 . 1 Time 58 | . 26 . 32 Parts Recycled 2 | . 2 . . Recycled Matter 105 | . 105 . . Retrieved Matter . | . . . . Retrieved Components 7 | . 7 . . Parts Scanalyzed . | . . . . Part Schematics Acquired . | . . . . Parts Damaged . | . . . . Bothacking | -11 -10 -10 -9 ------------ Run | Scr Mat Min Mat Used RIF Installer . | . . . . Robots Hacked . | . . . . Non-combat . | . . . . Combat . | . . . . Robot Hacks Applied . | . . . . Relay Couplers Released . | . . . . Fabnet Peak Effective % . | . . . . Robots Rewired . | . . . . Allies Hacked . | . . . . Hacks Repelled . | . . . . Allies | -11 -10 -10 -9 -------- Run | Scr Mat Min Mat Total Allies . | . . . . Largest Group . | . . . . Highest-Rated Group . | . . . . Highest-Rated Ally . | . . . . Total Orders . | . . . . Ally Attacks . | . . . . Total Damage . | . . . . Kills . | . . . . Allies Corrupted . | . . . . Allies Melted . | . . . . Intel | -11 -10 -10 -9 ------- Run | Scr Mat Min Mat Robot Analysis Total . | . . . . Derelict Logs Recovered . | . . . . Drone Launches . | . . . . Drone Recoveries . | . . . . Exploration | -11 -10 -10 -9 ------------- Run | Scr Mat Min Mat Turns Passed 2273 | 167 1322 303 481 Spaces Moved 1194 | 131 701 167 195 Core 32 | 32 . . . Treads 288 | . . 93 195 Legs 874 | 99 701 74 . Wheels . | . . . . Hover . | . . . . Flight . | . . . . Fastest Speed 50 | 50 120 160 160 Average Speed 168 | 103 166 173 217 Slowest Speed 320 | 120 190 190 320 Overloaded Moves . | . . . . Propulsion Burnouts . | . . . . Robots Hopped . | . . . . Cave-ins Triggered . | . . . . Exploration Rate (%) 39 | 10 86 46 16 Regions Visited 3 Branch Regions 1 Pre-discovered Areas . | . . . . Known Exits Taken 3 | 1 1 1 . Unknown Exits Taken . | . . . . Scrap Searched . | . . . . Spaces Dug . | . . . . Terrain Destroyed . | . . . . Melee . | . . . . Projectile . | . . . . AOE . | . . . . Terrain Rammed . | . . . . Walls Destroyed . | . . . . Machines Disabled . | . . . . Actions | -11 -10 -10 -9 --------- Run | Scr Mat Min Mat Total 1390 | 156 810 178 246 Wait 67 | . 43 . 24 Move 1191 | 130 700 166 195 Hop . | . . . . Pick Up 40 | 12 14 4 10 Fast Attach . | . . . . Attach 28 | 7 11 3 7 Detach 11 | . 7 2 2 Swap 1 | 1 . . . Drop 13 | 2 6 1 4 Fire 38 | 4 28 2 4 Melee . | . . . . Ram . | . . . . Kick 1 | . 1 . . Crush . | . . . . Escape Stasis . | . . . . Rewire . | . . . . Trap . | . . . . Miscellaneous . | . . . . Route ------- -11/Scrapyard -10/Materials (discovered 4 exits: *Mat x2 / *Min x2) -10/Mines -9/Materials History --------- Turn | Location | Event 2 | -11/Scrapyard | Met Revision 17 75 | -11/Scrapyard | Identified exit to Materials 75 | -11/Scrapyard | Discovered exit to Materials (range 8) 168 | -11/Scrapyard | Entered Materials 168 | -10/Materials | Evolved 1 slot: Weapon x1 325 | -10/Materials | Build established: Hacker-Mutant 447 | -10/Materials | Repaired Ion Engine 567 | -10/Materials | Identified exit to Mines 567 | -10/Materials | Discovered exit to Mines (range 16) 720 | -10/Materials | Identified exit to Materials 720 | -10/Materials | Discovered exit to Materials (range 5) 792 | -10/Materials | Build established: Hacker-Skirmisher 1001 | -10/Materials | Discovered exit to Materials (range 16) 1222 | -10/Materials | Discovered exit to Mines (range 14) 1490 | -10/Materials | Entered Mines 1582 | -10/Mines | Joined a pair of Derelicts in attacking an 0b10 outpost 1771 | -10/Mines | Discovered exit to Materials (range 4) 1793 | -10/Mines | Entered Materials 1793 | -9/Materials | Evolved 2 slots: Utility x2 1895 | -9/Materials | Build established: Hacker-Gunner 2206 | -9/Materials | Repaired Hrd. Light Armor Plating 2274 | -9/Materials | Self-destructed Last Messages --------------- 02230_ K-01 Serf collects debris. 02234_ K-01 Serf cleans the Integration Channel. 02235_ Y-45 Defender destroyed. 02238_ K-01 Serf collects debris. 02246_ Acquired 42 matter. 02250_ Acquired 2 matter. 02250_ R-06 Scavenger collects Imp. Ion Engine. 02253_ Acquired 3 matter. 02254_ K-01 Serf cleans the Integration Channel. 02254_ R-06 Scavenger collects Lgt. Treads. 02265_ K-01 Serf cleans the Integration Channel. 02267_ Connecting with Terminal... >>Enumerate(Investigations) Retrieving latest reported positions... No active investigation squads found. >>Recall(Investigation) Establishing remote squad link... No tasked investigation squads found. 02267_ ALERT: Suspicious activity at Terminal M007. Dispatching Investigation squad. 02271_ K-01 Serf cleans the Integration Channel. Map ----- +----------------------------------------------------+ | ???????????????????????????????? | | ???????????????????????????????? | | ???????????????????????????????? | | ???????????????????????????????? | | ???????????????????????????????? | | ???????????????????????????????? | | ???????????????????????????????? | | ???????????????????????????????? | | ???????????????????????????????? | | ???????????????? ??????????????? | | ???????????????? ##????????????? | | ???????????????? ##????????????? | | ???????????????? ##????????????? | | ???????????????? ##????????????? | | #######???? ##????????????? | | ##+#########??## ##????????????? | | ##??## ##????""??????? | | = ###### ### ?""""?????? | | ###### ### """"??????? | | #### # ???????? | | #### # ?????????? | | ####[ %+ ??????????? | | #### % # ??????????? | | #########/#### # "T" #### | | ## ##### ##+########### | | ## ### @ # | | ## ### " "# | | ## """ ###k""" T# | | ## """ ### """ "# | | #### """ # """ # | | #### + "" # | | ##"" # """ # | | ##"T """ ##+######## "" # | | ##"" """ # #### "" # | | #### """ #""" #### " # | | #!! #"R #### # | | ! #""" ##### ###### | | ! ! # ############ | | = # ##?#####???? | | ! #############?????? | | #!! #############?????? | | ####+#### ##### ?????? | | # ##### """ ""??????? | | ??????? # # """ ""??????? | | ??????? # # """ ""??????? | | ?? """ # + """ ""? ##??? | | ??############ # ##??? | | ??## # # ##??? | | ??## # # ##??? | | ??## """ """ + ############??? | +----------------------------------------------------+ Best States ------------- Heat Dissipation 28 Energy Generation 14 Energy Capacity 250 Matter Stores 300 Matter Capacity 300 Sight Range 16 Terrain Scan Density 10 Armor Coverage 150 Resistance: KI 35 Resistance: TH 35 Resistance: EX 35 Resistance: EM 35 Resistance: I 35 Resistance: S 35 Resistance: P 35 Evasion (%) 55 Targeting Accuracy 5 Recoil Reduction 2 Offensive Hacking 20 Item Schematics ----------------- None Robot Schematics ------------------ None Fabricated ------------ Nothing Alien Tech Used ----------------- None Achievements -------------- Everything Is Under Control Challenges ------------ None Game ------ Seed AlloyControlProtomatter Manual? 0 Play Time 00:28:06 Cumulative 1.2 hours Start 2022.12.02 @ 04:59:55 End 2022.12.21 @ 17:10:06 Sessions 3 Manual Loads 0 Difficulty Explorer Special Mode None Game No. 5 Rogue 2 Adventurer 2 Explorer 1 Win Type - Total 0 Types 0/0/0/0/0/0/0/0/0 Lore% 1 Gallery% 4 Achievement% 2 Wizard Run 0 Options --------- ASCII 0 Keyboard 1 Movement Vi Keybinds 1 Fullscreen 2 Font 24/Smallcaps Map View 113x50 Tactical HUD 1 Map Filters NONE Filters NONE Steam 1 RUN: 391505f5-f681-4d18-9539-b00d0f6bd0d0